[Event "*** SCC Grand Prix: Titled Tuesday Blitz"]
[Site "Chess.com"]
[Date "2020.07.07"]
[Round "1"]
[White "rpragchess"]
[Black "ChronicUnhappiness"]
[Result "1-0"]
[WhiteElo "2812"]
[BlackElo "2423"]
[TimeControl "180+1"]
[EndTime "10:05:30 PDT"]
[Termination "rpragchess won by checkmate"]

1. e4 {[%clk 0:03:00.9]} 1... d6 {[%clk 0:02:59.3]} 2. d4 {[%clk 0:03:00.7]}
2... Nf6 {[%clk 0:03:00]} 3. Nc3 {[%clk 0:03:01]} 3... g6 {[%clk 0:03:00.1]} 4.
Nf3 {[%clk 0:02:59.5]} 4... Bg7 {[%clk 0:03:00.1]} 5. Be2 {[%clk 0:02:59.6]}
5... O-O {[%clk 0:03:00.5]} 6. O-O {[%clk 0:02:59.3]} 6... Nc6 {[%clk
0:03:00.6]} 7. d5 {[%clk 0:02:58]} 7... Nb8 {[%clk 0:03:00.6]} 8. h3 {[%clk
0:02:58.3]} 8... c6 {[%clk 0:02:56.1]} 9. a4 {[%clk 0:02:58.2]} 9... b6 {[%clk
0:02:50.6]} 10. a5 {[%clk 0:02:45.8]} 10... Bb7 {[%clk 0:02:45.3]} 11. Nd4
{[%clk 0:02:31.8]} 11... cxd5 {[%clk 0:02:35.7]} 12. a6 {[%clk 0:02:30.1]} 12...
Bc6 {[%clk 0:02:30.5]} 13. exd5 {[%clk 0:02:20.1]} 13... Bxd5 {[%clk 0:02:01]}
14. Nxd5 {[%clk 0:02:19.3]} 14... Nxd5 {[%clk 0:02:01.9]} 15. Bf3 {[%clk
0:02:19.6]} 15... e6 {[%clk 0:01:55.1]} 16. Nxe6 {[%clk 0:01:56.3]} 16... fxe6
{[%clk 0:01:52.4]} 17. Bxd5 {[%clk 0:01:56.4]} 17... Nd7 {[%clk 0:01:23.6]} 18.
Bxa8 {[%clk 0:01:54]} 18... Qxa8 {[%clk 0:01:24.5]} 19. Qxd6 {[%clk 0:01:54.2]}
19... Nc5 {[%clk 0:01:22.2]} 20. Be3 {[%clk 0:01:18.4]} 20... Rd8 {[%clk
0:01:08.8]} 21. Qg3 {[%clk 0:01:17]} 21... Bxb2 {[%clk 0:01:07.1]} 22. Rad1
{[%clk 0:01:16.8]} 22... Nxa6 {[%clk 0:01:03.4]} 23. Bg5 {[%clk 0:01:16.3]}
23... Rxd1 {[%clk 0:00:56.8]} 24. Rxd1 {[%clk 0:01:17.2]} 24... Qc6 {[%clk
0:00:52.4]} 25. Rd8+ {[%clk 0:01:13.1]} 25... Kg7 {[%clk 0:00:50.6]} 26. Qf4
{[%clk 0:01:13.2]} 26... Qc5 {[%clk 0:00:30.2]} 27. Bh6# {[%clk 0:01:11.3]} 1-0

[Event "*** SCC Grand Prix: Titled Tuesday Blitz"]
[Site "Chess.com"]
[Date "2020.07.07"]
[Round "1"]
[White "Pultis"]
[Black "joksijoksi"]
[Result "1-0"]
[WhiteElo "2658"]
[BlackElo "2335"]
[TimeControl "180+1"]
[EndTime "10:05:32 PDT"]
[Termination "Pultis won by checkmate"]

1. d4 {[%clk 0:03:00.8]} 1... e6 {[%clk 0:02:51.2]} 2. c4 {[%clk 0:03:00.2]}
2... d5 {[%clk 0:02:50.9]} 3. Nf3 {[%clk 0:02:59.1]} 3... c6 {[%clk 0:02:51.2]}
4. Nbd2 {[%clk 0:02:57.8]} 4... f5 {[%clk 0:02:44.2]} 5. g3 {[%clk 0:02:57.5]}
5... Nf6 {[%clk 0:02:41.3]} 6. Bg2 {[%clk 0:02:57.9]} 6... Be7 {[%clk
0:02:38.8]} 7. O-O {[%clk 0:02:57.1]} 7... O-O {[%clk 0:02:39.4]} 8. Rb1 {[%clk
0:02:57.3]} 8... Ne4 {[%clk 0:02:35.1]} 9. Ne5 {[%clk 0:02:54.3]} 9... Nd7
{[%clk 0:02:34.8]} 10. Ndf3 {[%clk 0:02:53]} 10... Qc7 {[%clk 0:01:42.4]} 11.
Qc2 {[%clk 0:02:47.2]} 11... Bd6 {[%clk 0:01:37.1]} 12. Bf4 {[%clk 0:02:42.9]}
12... h6 {[%clk 0:01:02.3]} 13. b4 {[%clk 0:02:36.2]} 13... g5 {[%clk
0:01:01.7]} 14. Nxd7 {[%clk 0:02:35.5]} 14... Bxd7 {[%clk 0:00:58]} 15. Bxd6
{[%clk 0:02:34.9]} 15... Qxd6 {[%clk 0:00:58.4]} 16. Ne5 {[%clk 0:02:32.5]}
16... Kg7 {[%clk 0:00:43.5]} 17. a4 {[%clk 0:02:29.3]} 17... h5 {[%clk
0:00:38.7]} 18. b5 {[%clk 0:02:27.5]} 18... h4 {[%clk 0:00:20.7]} 19. bxc6
{[%clk 0:02:24.9]} 19... Bxc6 {[%clk 0:00:19.6]} 20. Qc1 {[%clk 0:01:57.8]}
20... f4 {[%clk 0:00:17.6]} 21. Qb2 {[%clk 0:01:51.1]} 21... hxg3 {[%clk
0:00:14.7]} 22. Bxe4 {[%clk 0:01:50.3]} 22... gxf2+ {[%clk 0:00:11.6]} 23. Rxf2
{[%clk 0:01:49.8]} 23... dxe4 {[%clk 0:00:12.3]} 24. d5 {[%clk 0:01:50.3]} 24...
Bxa4 {[%clk 0:00:10.2]} 25. Qxb7+ {[%clk 0:01:42.1]} 25... Kf6 {[%clk
0:00:08.3]} 26. Ng4+ {[%clk 0:01:41.6]} 26... Kf5 {[%clk 0:00:08.5]} 27. Qh7+
{[%clk 0:01:37]} 27... Kxg4 {[%clk 0:00:08.6]} 28. h3+ {[%clk 0:01:36.8]} 28...
Kg3 {[%clk 0:00:08.7]} 29. Rg2# {[%clk 0:01:37.7]} 1-0

[Event "*** SCC Grand Prix: Titled Tuesday Blitz"]
[Site "Chess.com"]
[Date "2020.07.07"]
[Round "1"]
[White "grzechu96"]
[Black "InitiatingASC"]
[Result "1-0"]
[WhiteElo "2652"]
[BlackElo "2324"]
[TimeControl "180+1"]
[EndTime "10:05:32 PDT"]
[Termination "grzechu96 won by resignation"]

1. e4 {[%clk 0:02:56]} 1... c5 {[%clk 0:02:59.9]} 2. Nf3 {[%clk 0:02:55]} 2...
Nc6 {[%clk 0:03:00.2]} 3. Bb5 {[%clk 0:02:54.3]} 3... Nf6 {[%clk 0:02:59.8]} 4.
Bxc6 {[%clk 0:02:53.8]} 4... dxc6 {[%clk 0:02:58.2]} 5. d3 {[%clk 0:02:53.9]}
5... g6 {[%clk 0:02:57.3]} 6. h3 {[%clk 0:02:51.2]} 6... Bg7 {[%clk 0:02:57.4]}
7. Nc3 {[%clk 0:02:51]} 7... O-O {[%clk 0:02:57.3]} 8. O-O {[%clk 0:02:47.3]}
8... Ne8 {[%clk 0:02:56.2]} 9. Be3 {[%clk 0:02:47]} 9... b6 {[%clk 0:02:55.8]}
10. Qd2 {[%clk 0:02:46.7]} 10... Nc7 {[%clk 0:02:53.9]} 11. Bh6 {[%clk
0:02:45.8]} 11... Ne6 {[%clk 0:02:52.8]} 12. Nh2 {[%clk 0:02:38.7]} 12... Nd4
{[%clk 0:02:49.9]} 13. Bxg7 {[%clk 0:02:37.1]} 13... Kxg7 {[%clk 0:02:49.5]} 14.
f4 {[%clk 0:02:37.4]} 14... f5 {[%clk 0:02:22.2]} 15. Rae1 {[%clk 0:02:36.9]}
15... Rf7 {[%clk 0:02:12.3]} 16. Nf3 {[%clk 0:02:30.9]} 16... Nxf3+ {[%clk
0:02:02.5]} 17. Rxf3 {[%clk 0:02:31.8]} 17... Qd4+ {[%clk 0:02:01.5]} 18. Kh1
{[%clk 0:02:31.1]} 18... c4 {[%clk 0:01:46.1]} 19. Rfe3 {[%clk 0:02:29.6]} 19...
e6 {[%clk 0:01:42.1]} 20. exf5 {[%clk 0:02:06]} 20... exf5 {[%clk 0:01:36.7]}
21. Re7 {[%clk 0:01:38.8]} 21... Ba6 {[%clk 0:01:32.1]} 22. Rxf7+ {[%clk
0:01:24.2]} 22... Kxf7 {[%clk 0:01:33]} 23. Qe2 {[%clk 0:01:24.6]} 23... Qd7
{[%clk 0:01:29.6]} 24. dxc4 {[%clk 0:01:24]} 24... Re8 {[%clk 0:01:20.8]} 25.
Qxe8+ {[%clk 0:01:23.8]} 25... Qxe8 {[%clk 0:01:21.7]} 26. Rxe8 {[%clk
0:01:24.3]} 26... Kxe8 {[%clk 0:01:22.6]} 27. b3 {[%clk 0:01:25]} 27... Ke7
{[%clk 0:01:23.1]} 28. Kg1 {[%clk 0:01:25.2]} 28... Kd6 {[%clk 0:01:23.3]} 29.
Kf2 {[%clk 0:01:20.9]} 29... Kc5 {[%clk 0:01:23.4]} 30. Ke3 {[%clk 0:01:21.5]}
30... Bc8 {[%clk 0:01:08.1]} 31. a3 {[%clk 0:01:16.2]} 31... a5 {[%clk
0:01:06.9]} 32. Na4+ {[%clk 0:01:16]} 32... Kd6 {[%clk 0:01:04.5]} 33. Nxb6
{[%clk 0:01:16.5]} 33... Be6 {[%clk 0:01:03.8]} 34. Na4 {[%clk 0:01:16.7]} 34...
h6 {[%clk 0:01:03]} 35. Kd4 {[%clk 0:01:16.8]} 35... g5 {[%clk 0:01:02.7]} 36.
g3 {[%clk 0:01:17.2]} 36... Bf7 {[%clk 0:01:00.1]} 37. Nc5 {[%clk 0:01:12.9]}
37... Kc7 {[%clk 0:00:57.2]} 38. Ke5 {[%clk 0:01:10.7]} 1-0

[Event "*** SCC Grand Prix: Titled Tuesday Blitz"]
[Site "Chess.com"]
[Date "2020.07.07"]
[Round "1"]
[White "Revnov"]
[Black "Fischerev7"]
[Result "1-0"]
[WhiteElo "2679"]
[BlackElo "2362"]
[TimeControl "180+1"]
[EndTime "10:05:35 PDT"]
[Termination "Revnov won on time"]

1. e4 {[%clk 0:03:00.7]} 1... c5 {[%clk 0:02:59.8]} 2. Nf3 {[%clk 0:03:01.1]}
2... d6 {[%clk 0:02:59.7]} 3. d4 {[%clk 0:03:01.7]} 3... cxd4 {[%clk 0:03:00]}
4. Nxd4 {[%clk 0:03:02.6]} 4... Nf6 {[%clk 0:03:00.2]} 5. Nc3 {[%clk 0:03:03.1]}
5... a6 {[%clk 0:03:00]} 6. Bg5 {[%clk 0:03:01.8]} 6... e6 {[%clk 0:03:00]} 7.
Qe2 {[%clk 0:03:01.9]} 7... Be7 {[%clk 0:02:58.3]} 8. O-O-O {[%clk 0:03:02.2]}
8... Qc7 {[%clk 0:02:53.9]} 9. Kb1 {[%clk 0:02:54.4]} 9... Nbd7 {[%clk
0:02:44.5]} 10. h4 {[%clk 0:02:53]} 10... b5 {[%clk 0:02:40.4]} 11. a3 {[%clk
0:02:52.3]} 11... Bb7 {[%clk 0:02:38.8]} 12. Rh3 {[%clk 0:02:49.7]} 12... h6
{[%clk 0:02:17.1]} 13. Bc1 {[%clk 0:02:48.8]} 13... Ne5 {[%clk 0:02:01.9]} 14.
f4 {[%clk 0:02:40.7]} 14... Nc4 {[%clk 0:02:01.2]} 15. g4 {[%clk 0:02:39.5]}
15... d5 {[%clk 0:01:54.4]} 16. e5 {[%clk 0:02:36.6]} 16... Ne4 {[%clk
0:01:52.7]} 17. Nxe4 {[%clk 0:02:33.6]} 17... dxe4 {[%clk 0:01:53.6]} 18. Bg2
{[%clk 0:02:29.8]} 18... b4 {[%clk 0:01:27.8]} 19. axb4 {[%clk 0:02:26.7]} 19...
Bxb4 {[%clk 0:01:28.7]} 20. Bxe4 {[%clk 0:02:25.5]} 20... Rb8 {[%clk 0:01:12.2]}
21. Nc6 {[%clk 0:02:14.5]} 21... Nxb2 {[%clk 0:00:14.8]} 22. Bxb2 {[%clk
0:02:08.4]} 22... Bxc6 {[%clk 0:00:13.5]} 23. Qc4 {[%clk 0:02:08.3]} 23... Rb6
{[%clk 0:00:09.1]} 24. Rb3 {[%clk 0:01:50.1]} 24... a5 {[%clk 0:00:06.7]} 25.
Rd6 {[%clk 0:01:35.1]} 25... Bxd6 {[%clk 0:00:03.1]} 26. exd6 {[%clk 0:01:34.4]}
1-0

[Event "*** SCC Grand Prix: Titled Tuesday Blitz"]
[Site "Chess.com"]
[Date "2020.07.07"]
[Round "1"]
[White "Mikasinski"]
[Black "Elshan1985"]
[Result "0-1"]
[WhiteElo "2427"]
[BlackElo "2826"]
[TimeControl "180+1"]
[EndTime "10:05:38 PDT"]
[Termination "Elshan1985 won by resignation"]

1. e4 {[%clk 0:03:00.9]} 1... Nf6 {[%clk 0:02:59.5]} 2. e5 {[%clk 0:03:00.1]}
2... Nd5 {[%clk 0:03:00]} 3. c4 {[%clk 0:03:00]} 3... Nb6 {[%clk 0:02:59.7]} 4.
d4 {[%clk 0:03:00.4]} 4... d6 {[%clk 0:02:59.7]} 5. exd6 {[%clk 0:03:00.3]} 5...
cxd6 {[%clk 0:03:00.6]} 6. Nc3 {[%clk 0:03:00.4]} 6... g6 {[%clk 0:03:00.9]} 7.
Be3 {[%clk 0:03:00.8]} 7... Bg7 {[%clk 0:03:01.4]} 8. Rc1 {[%clk 0:03:01.2]}
8... O-O {[%clk 0:03:01.5]} 9. b3 {[%clk 0:03:01.5]} 9... e5 {[%clk 0:03:01.9]}
10. dxe5 {[%clk 0:02:47.5]} 10... dxe5 {[%clk 0:03:02.8]} 11. c5 {[%clk
0:02:40.6]} 11... N6d7 {[%clk 0:02:56.3]} 12. Bc4 {[%clk 0:02:39.5]} 12... Qa5
{[%clk 0:02:28.2]} 13. Qd2 {[%clk 0:01:53.5]} 13... Nxc5 {[%clk 0:02:23.8]} 14.
Nd5 {[%clk 0:01:53.2]} 14... Qxd2+ {[%clk 0:02:22.6]} 15. Kxd2 {[%clk
0:01:53.1]} 15... Nba6 {[%clk 0:02:16.7]} 16. b4 {[%clk 0:01:24.7]} 16... Ne4+
{[%clk 0:02:14.3]} 17. Kd3 {[%clk 0:01:21.5]} 17... Nd6 {[%clk 0:02:06.6]} 18.
Bxa6 {[%clk 0:01:10.5]} 18... bxa6 {[%clk 0:01:57.9]} 19. Ke2 {[%clk 0:00:57.5]}
19... Bb7 {[%clk 0:01:54.1]} 20. Ne7+ {[%clk 0:00:48.7]} 20... Kh8 {[%clk
0:01:53.6]} 21. f3 {[%clk 0:00:41.4]} 21... Rfe8 {[%clk 0:01:46.6]} 22. Nc6
{[%clk 0:00:32.8]} 22... e4 {[%clk 0:01:33.5]} 23. f4 {[%clk 0:00:25.3]} 23...
Rac8 {[%clk 0:01:31.1]} 24. Nxa7 {[%clk 0:00:19.9]} 24... Rxc1 {[%clk
0:01:30.8]} 25. Bxc1 {[%clk 0:00:19.8]} 25... Bd4 {[%clk 0:01:25.4]} 26. Be3
{[%clk 0:00:13.1]} 26... Bxe3 {[%clk 0:01:25.2]} 27. Kxe3 {[%clk 0:00:13.2]}
27... Nf5+ {[%clk 0:01:25.1]} 28. Kd2 {[%clk 0:00:12]} 28... e3+ {[%clk
0:01:24.5]} 0-1

[Event "*** SCC Grand Prix: Titled Tuesday Blitz"]
[Site "Chess.com"]
[Date "2020.07.07"]
[Round "1"]
[White "Oligan22"]
[Black "canary2016"]
[Result "1-0"]
[WhiteElo "2477"]
[BlackElo "1913"]
[TimeControl "180+1"]
[EndTime "10:05:41 PDT"]
[Termination "Oligan22 won by checkmate"]

1. e4 {[%clk 0:03:00.9]} 1... c5 {[%clk 0:02:58.8]} 2. Nf3 {[%clk 0:03:00.5]}
2... d6 {[%clk 0:02:57.7]} 3. d4 {[%clk 0:03:00.2]} 3... cxd4 {[%clk 0:02:57.3]}
4. Nxd4 {[%clk 0:03:00.4]} 4... Nf6 {[%clk 0:02:57.5]} 5. Nc3 {[%clk 0:03:00.5]}
5... a6 {[%clk 0:02:57.6]} 6. Be3 {[%clk 0:02:58.3]} 6... e5 {[%clk 0:02:57]} 7.
Nb3 {[%clk 0:02:57.9]} 7... Be6 {[%clk 0:02:53.4]} 8. Qd2 {[%clk 0:02:57.9]}
8... Nbd7 {[%clk 0:02:42.9]} 9. f3 {[%clk 0:02:57.6]} 9... h5 {[%clk 0:02:39.6]}
10. Nd5 {[%clk 0:02:52.3]} 10... Bxd5 {[%clk 0:02:35]} 11. exd5 {[%clk
0:02:53.2]} 11... g6 {[%clk 0:02:33.6]} 12. c4 {[%clk 0:02:52]} 12... b6 {[%clk
0:02:30.6]} 13. Be2 {[%clk 0:02:47.3]} 13... Bg7 {[%clk 0:02:30]} 14. O-O {[%clk
0:02:47.3]} 14... O-O {[%clk 0:02:29.1]} 15. f4 {[%clk 0:02:47]} 15... exf4
{[%clk 0:02:26.6]} 16. Bxf4 {[%clk 0:02:46.9]} 16... Nc5 {[%clk 0:02:25.6]} 17.
Bh6 {[%clk 0:02:38.6]} 17... Re8 {[%clk 0:02:22.8]} 18. Bxg7 {[%clk 0:02:37.3]}
18... Kxg7 {[%clk 0:02:22.7]} 19. Bf3 {[%clk 0:02:32.6]} 19... Re5 {[%clk
0:02:18.9]} 20. Nd4 {[%clk 0:02:31.8]} 20... Qe8 {[%clk 0:02:13.6]} 21. Rae1
{[%clk 0:02:30.5]} 21... Rxe1 {[%clk 0:02:11.7]} 22. Rxe1 {[%clk 0:02:31.4]}
22... Qd7 {[%clk 0:02:09.8]} 23. b4 {[%clk 0:02:21.8]} 23... Nb7 {[%clk
0:02:06.5]} 24. h3 {[%clk 0:02:09.9]} 24... Re8 {[%clk 0:02:05.3]} 25. Nc6
{[%clk 0:01:59]} 25... Nd8 {[%clk 0:02:01.3]} 26. Qf2 {[%clk 0:01:56.3]} 26...
Ng8 {[%clk 0:01:48.8]} 27. Qd4+ {[%clk 0:01:47.8]} 27... Nf6 {[%clk 0:01:47.7]}
28. Rxe8 {[%clk 0:01:47.2]} 28... Qxe8 {[%clk 0:01:46.6]} 29. Qxb6 {[%clk
0:01:41.1]} 29... Nxc6 {[%clk 0:01:35.4]} 30. dxc6 {[%clk 0:01:42]} 30... Qe1+
{[%clk 0:01:34.3]} 31. Kh2 {[%clk 0:01:42.4]} 31... Qe5+ {[%clk 0:01:33.8]} 32.
Kh1 {[%clk 0:01:42.9]} 32... Qe1+ {[%clk 0:01:31.3]} 33. Qg1 {[%clk 0:01:42.9]}
33... Qxb4 {[%clk 0:01:28.4]} 34. Bd5 {[%clk 0:01:36.8]} 34... Ne8 {[%clk
0:01:21]} 35. Qd4+ {[%clk 0:01:34.9]} 35... f6 {[%clk 0:01:18.6]} 36. Qe4 {[%clk
0:01:32]} 36... Nc7 {[%clk 0:01:18]} 37. Qe7+ {[%clk 0:01:31.7]} 37... Kh6
{[%clk 0:01:17.8]} 38. Qxf6 {[%clk 0:01:24.4]} 38... Qe1+ {[%clk 0:01:11]} 39.
Kh2 {[%clk 0:01:24.7]} 39... Qd2 {[%clk 0:00:57.1]} 40. h4 {[%clk 0:01:18.3]}
40... Qxa2 {[%clk 0:00:44]} 41. Qh8# {[%clk 0:01:17.3]} 1-0

[Event "*** SCC Grand Prix: Titled Tuesday Blitz"]
[Site "Chess.com"]
[Date "2020.07.07"]
[Round "1"]
[White "Indianlad"]
[Black "Fluffey"]
[Result "1-0"]
[WhiteElo "2966"]
[BlackElo "2453"]
[TimeControl "180+1"]
[EndTime "10:05:42 PDT"]
[Termination "Indianlad won by resignation"]

1. d4 {[%clk 0:03:00.9]} 1... f5 {[%clk 0:02:59]} 2. Bg5 {[%clk 0:03:00.3]} 2...
h6 {[%clk 0:02:59]} 3. Bh4 {[%clk 0:03:00.8]} 3... g5 {[%clk 0:02:59.6]} 4. Bg3
{[%clk 0:03:01]} 4... Bg7 {[%clk 0:02:58.9]} 5. e3 {[%clk 0:03:00.9]} 5... c5
{[%clk 0:02:57.5]} 6. Nc3 {[%clk 0:02:58.5]} 6... Nc6 {[%clk 0:02:54.7]} 7. d5
{[%clk 0:02:49.3]} 7... Ne5 {[%clk 0:02:48.9]} 8. d6 {[%clk 0:02:36.8]} 8... e6
{[%clk 0:02:23.1]} 9. Nb5 {[%clk 0:02:25.2]} 9... Kf7 {[%clk 0:02:19]} 10. Nc7
{[%clk 0:02:21.4]} 10... Rb8 {[%clk 0:02:18.2]} 11. c3 {[%clk 0:02:17.2]} 11...
Ng6 {[%clk 0:02:12.2]} 12. Bd3 {[%clk 0:02:12.4]} 12... h5 {[%clk 0:01:56]} 13.
h4 {[%clk 0:02:12.4]} 13... gxh4 {[%clk 0:01:50.6]} 14. Bh2 {[%clk 0:02:12.2]}
14... Nf6 {[%clk 0:01:46.9]} 15. Nf3 {[%clk 0:02:03.6]} 15... Ng4 {[%clk
0:01:43.6]} 16. Bf4 {[%clk 0:02:04.2]} 16... Bf6 {[%clk 0:01:39.6]} 17. Qb3
{[%clk 0:01:56.8]} 17... Kg7 {[%clk 0:01:31.7]} 18. g3 {[%clk 0:01:43.6]} 18...
e5 {[%clk 0:01:27]} 19. Bxf5 {[%clk 0:01:41.7]} 19... exf4 {[%clk 0:01:25.2]}
20. gxf4 {[%clk 0:01:42.4]} 20... b5 {[%clk 0:01:21]} 21. O-O-O {[%clk
0:01:41.7]} 21... c4 {[%clk 0:01:20.4]} 22. Qc2 {[%clk 0:01:41.7]} 22... Nf8
{[%clk 0:01:10.9]} 23. Rhg1 {[%clk 0:01:40.4]} 23... Bb7 {[%clk 0:01:05.2]} 24.
Nh2 {[%clk 0:01:40.7]} 24... b4 {[%clk 0:00:55.2]} 25. Nxg4 {[%clk 0:01:40.1]}
25... hxg4 {[%clk 0:00:54.9]} 26. Rxg4+ {[%clk 0:01:41]} 26... Kh6 {[%clk
0:00:51.3]} 27. Rdg1 {[%clk 0:01:41.1]} 27... Bf3 {[%clk 0:00:46.6]} 28. Rg6+
{[%clk 0:01:33]} 28... Nxg6 {[%clk 0:00:45.9]} 29. Rxg6+ {[%clk 0:01:33.9]}
29... Kh5 {[%clk 0:00:46.3]} 30. Bh3 {[%clk 0:01:33.9]} 1-0

[Event "*** SCC Grand Prix: Titled Tuesday Blitz"]
[Site "Chess.com"]
[Date "2020.07.07"]
[Round "1"]
[White "exoticprincess"]
[Black "FedaMaster"]
[Result "0-1"]
[WhiteElo "2792"]
[BlackElo "2436"]
[TimeControl "180+1"]
[EndTime "10:05:42 PDT"]
[Termination "FedaMaster won by resignation"]

1. d4 {[%clk 0:03:00.9]} 1... Nf6 {[%clk 0:02:57.1]} 2. Bg5 {[%clk 0:03:00.2]}
2... c5 {[%clk 0:02:55.6]} 3. Bxf6 {[%clk 0:02:59.6]} 3... gxf6 {[%clk
0:02:54.1]} 4. d5 {[%clk 0:03:00.5]} 4... f5 {[%clk 0:02:50.4]} 5. Nd2 {[%clk
0:03:00.3]} 5... Bg7 {[%clk 0:02:49.1]} 6. c3 {[%clk 0:03:00.7]} 6... d6 {[%clk
0:02:49.6]} 7. e3 {[%clk 0:02:59.6]} 7... Nd7 {[%clk 0:02:49.2]} 8. g3 {[%clk
0:02:56.2]} 8... h5 {[%clk 0:02:47.6]} 9. Bg2 {[%clk 0:02:53.6]} 9... h4 {[%clk
0:02:46.8]} 10. Ne2 {[%clk 0:02:53.5]} 10... Ne5 {[%clk 0:02:42.3]} 11. Nf4
{[%clk 0:02:50.6]} 11... Qb6 {[%clk 0:02:34.5]} 12. Qc2 {[%clk 0:02:48.7]} 12...
Qa6 {[%clk 0:02:32.9]} 13. a3 {[%clk 0:02:35.4]} 13... Bd7 {[%clk 0:02:30.9]}
14. O-O-O {[%clk 0:02:31.7]} 14... b5 {[%clk 0:02:25.6]} 15. Bf1 {[%clk
0:01:59.3]} 15... Qb6 {[%clk 0:02:10.9]} 16. Be2 {[%clk 0:01:55.1]} 16... b4
{[%clk 0:02:08.7]} 17. Nh5 {[%clk 0:01:48.5]} 17... Rxh5 {[%clk 0:02:00.5]} 18.
Bxh5 {[%clk 0:01:47.5]} 18... bxa3 {[%clk 0:02:01.4]} 19. bxa3 {[%clk
0:01:46.8]} 19... Qa5 {[%clk 0:01:56.3]} 20. Nb1 {[%clk 0:01:37.5]} 20... Rb8
{[%clk 0:01:50.9]} 21. Be2 {[%clk 0:01:37.4]} 21... Ba4 {[%clk 0:01:48.2]} 22.
Qxf5 {[%clk 0:01:36]} 22... Rxb1+ {[%clk 0:00:55.8]} 23. Kxb1 {[%clk 0:01:31.2]}
23... e6 {[%clk 0:00:52.2]} 24. dxe6 {[%clk 0:01:22.9]} 24... Qxc3 {[%clk
0:00:51.8]} 25. exf7+ {[%clk 0:01:21.7]} 25... Nxf7 {[%clk 0:00:49.7]} 26. Qe6+
{[%clk 0:01:18.2]} 26... Kf8 {[%clk 0:00:48.6]} 27. Qa2 {[%clk 0:01:17.9]} 27...
Bc2+ {[%clk 0:00:45.6]} 0-1

[Event "*** SCC Grand Prix: Titled Tuesday Blitz"]
[Site "Chess.com"]
[Date "2020.07.07"]
[Round "1"]
[White "PowerThinking2650"]
[Black "Witik"]
[Result "0-1"]
[WhiteElo "2318"]
[BlackElo "2643"]
[TimeControl "180+1"]
[EndTime "10:05:44 PDT"]
[Termination "Witik won by checkmate"]

1. e4 {[%clk 0:02:52.9]} 1... c6 {[%clk 0:02:57.7]} 2. d4 {[%clk 0:02:52.2]}
2... d5 {[%clk 0:02:57.8]} 3. Nc3 {[%clk 0:02:52.8]} 3... dxe4 {[%clk
0:02:57.4]} 4. Nxe4 {[%clk 0:02:53.7]} 4... Nf6 {[%clk 0:02:57.5]} 5. Nxf6+
{[%clk 0:02:53.5]} 5... exf6 {[%clk 0:02:58.3]} 6. c3 {[%clk 0:02:53.4]} 6...
Bd6 {[%clk 0:02:55.6]} 7. Bd3 {[%clk 0:02:53.9]} 7... O-O {[%clk 0:02:55.1]} 8.
Qc2 {[%clk 0:02:54.4]} 8... Re8+ {[%clk 0:02:55]} 9. Ne2 {[%clk 0:02:54.9]} 9...
h5 {[%clk 0:02:54.6]} 10. Be3 {[%clk 0:02:55.1]} 10... Nd7 {[%clk 0:02:52.9]}
11. O-O-O {[%clk 0:02:54.8]} 11... Nf8 {[%clk 0:02:52.9]} 12. c4 {[%clk
0:02:47.5]} 12... Be6 {[%clk 0:02:50.1]} 13. Nc3 {[%clk 0:02:40.6]} 13... Qa5
{[%clk 0:02:36.5]} 14. Kb1 {[%clk 0:02:15.7]} 14... b5 {[%clk 0:02:33.7]} 15. c5
{[%clk 0:01:55.3]} 15... b4 {[%clk 0:02:18.4]} 16. Na4 {[%clk 0:01:09.1]} 16...
Bc7 {[%clk 0:02:04.5]} 17. Be4 {[%clk 0:00:47.3]} 17... Bxa2+ {[%clk 0:01:46.4]}
18. Kxa2 {[%clk 0:00:41.3]} 18... Rxe4 {[%clk 0:01:46.1]} 19. Qxe4 {[%clk
0:00:35.7]} 19... Qxa4+ {[%clk 0:01:46.4]} 20. Kb1 {[%clk 0:00:35.1]} 20... b3
{[%clk 0:01:47]} 21. Qd3 {[%clk 0:00:20.1]} 21... Ne6 {[%clk 0:01:29.5]} 22. g3
{[%clk 0:00:20.2]} 22... Rd8 {[%clk 0:01:22.5]} 23. Qc3 {[%clk 0:00:20.4]} 23...
Ba5 {[%clk 0:01:22.1]} 24. Qd3 {[%clk 0:00:16.2]} 24... Nxd4 {[%clk 0:01:19]}
25. Qe4 {[%clk 0:00:13.4]} 25... Qa2+ {[%clk 0:01:15.4]} 26. Kc1 {[%clk
0:00:13.5]} 26... Qa1+ {[%clk 0:01:14.8]} 27. Qb1 {[%clk 0:00:13.3]} 27... Ne2#
{[%clk 0:01:15.4]} 0-1

[Event "*** SCC Grand Prix: Titled Tuesday Blitz"]
[Site "Chess.com"]
[Date "2020.07.07"]
[Round "1"]
[White "coalescenet"]
[Black "alexrustemov"]
[Result "0-1"]
[WhiteElo "2387"]
[BlackElo "2716"]
[TimeControl "180+1"]
[EndTime "10:05:45 PDT"]
[Termination "alexrustemov won by resignation"]

1. d4 {[%clk 0:02:58.7]} 1... f5 {[%clk 0:02:58.5]} 2. Nc3 {[%clk 0:02:58.1]}
2... Nf6 {[%clk 0:02:58.7]} 3. Bg5 {[%clk 0:02:58.1]} 3... d5 {[%clk 0:02:59.4]}
4. Bxf6 {[%clk 0:02:56.9]} 4... exf6 {[%clk 0:03:00.3]} 5. e3 {[%clk 0:02:57.5]}
5... Be6 {[%clk 0:03:00.9]} 6. Nf3 {[%clk 0:02:57.7]} 6... Nc6 {[%clk
0:03:01.6]} 7. Bd3 {[%clk 0:02:58.2]} 7... Qd7 {[%clk 0:03:01.4]} 8. a3 {[%clk
0:02:58.4]} 8... g6 {[%clk 0:02:49.3]} 9. Qe2 {[%clk 0:02:56.7]} 9... Na5 {[%clk
0:02:43.9]} 10. Nd2 {[%clk 0:02:51.9]} 10... b6 {[%clk 0:02:35.4]} 11. Ba6
{[%clk 0:02:41]} 11... c6 {[%clk 0:02:33.5]} 12. b4 {[%clk 0:02:36.5]} 12... Nb7
{[%clk 0:02:32.3]} 13. Nb3 {[%clk 0:02:34.8]} 13... Nd6 {[%clk 0:02:30.2]} 14.
Bd3 {[%clk 0:02:33.8]} 14... Be7 {[%clk 0:02:24.2]} 15. Qf3 {[%clk 0:02:27.6]}
15... O-O {[%clk 0:02:22.4]} 16. O-O {[%clk 0:02:23.4]} 16... Ne4 {[%clk
0:02:05.5]} 17. Nb1 {[%clk 0:02:15]} 17... a5 {[%clk 0:02:02.9]} 18. bxa5 {[%clk
0:02:04.9]} 18... bxa5 {[%clk 0:02:03.8]} 19. a4 {[%clk 0:02:05.4]} 19... Rfb8
{[%clk 0:01:58.7]} 20. Qe2 {[%clk 0:01:56.2]} 20... Bb4 {[%clk 0:01:42.2]} 21.
f3 {[%clk 0:01:47.4]} 21... Ng5 {[%clk 0:01:28.2]} 22. N1d2 {[%clk 0:01:38.5]}
22... Qa7 {[%clk 0:01:15.5]} 23. Qf2 {[%clk 0:01:35.7]} 23... Bc3 {[%clk
0:01:11.1]} 24. Ra2 {[%clk 0:01:32.9]} 24... Bf7 {[%clk 0:01:08.8]} 25. Nb1
{[%clk 0:01:30.7]} 25... Bb4 {[%clk 0:01:07.5]} 26. N1d2 {[%clk 0:01:29.3]}
26... Kg7 {[%clk 0:01:06.4]} 27. Rb1 {[%clk 0:01:28]} 27... Re8 {[%clk
0:01:03.5]} 28. Nf1 {[%clk 0:01:24.5]} 28... Re7 {[%clk 0:01:02.2]} 29. Nbd2
{[%clk 0:01:18.9]} 29... Rae8 {[%clk 0:01:01.2]} 30. c4 {[%clk 0:01:15.9]} 30...
f4 {[%clk 0:00:55.3]} 31. exf4 {[%clk 0:01:12.7]} 31... Ne6 {[%clk 0:00:55.4]}
32. c5 {[%clk 0:01:11.2]} 32... Nxf4 {[%clk 0:00:47.5]} 33. Bc2 {[%clk
0:01:04.6]} 33... Re2 {[%clk 0:00:45.7]} 34. Qg3 {[%clk 0:01:04.9]} 34... Rxg2+
{[%clk 0:00:45.3]} 35. Qxg2 {[%clk 0:01:04.5]} 35... Nxg2 {[%clk 0:00:46.2]} 36.
Kxg2 {[%clk 0:01:04.9]} 36... Bxd2 {[%clk 0:00:46.7]} 0-1